Cogmind - Beta 10 @@@ ROGUE MODE // 2020.09.17 @ 06:26:55 Player: Sudoku Result: Destroyed by G-73 Enforcer with Heavy Laser Performance ------------- Evolutions (9) 4500 Regions Visited (23) 4600 Robots Destroyed (212) 1060 Value Destroyed (10044) 10044 Prototype IDs (47) 940 Alien Tech Used (1) 200 Bonus (2410) 2410 TOTAL SCORE: 23754 Bonus ------- High Alert Combat Kills 430 Follower Combat Kills 354 Network Hubs Disabled 400 Aligned with FarCom 300 MAIN.C Attacked Warlord 500 Warlord Defense Kill 540 Friendly Fire -114 Cogmind --------- Core Integrity 0/1600 Matter 25/300 Energy 76/100 System Corruption 0% Temperature Cool (27) Movement Core (50) Location -1/Access Parts ------- > --- POWER (2) -------- (None) > --- PROPULSION (8) --- (None) > --- UTILITY (10) ----- (None) > --- WEAPON (5) ------- (None) > --- INVENTORY (4) ---- Light Particle Reactor Hacking Suite Tiamat Missile Launcher Peak State ------------ > --- POWER ------------ Micro Fission Core Particle Reactor > --- PROPULSION ------- Improved Heavy Treads Centrium Heavy Treads > --- UTILITY ---------- Advanced Heat Sink High-capacity Storage Unit High-capacity Storage Unit High-capacity Storage Unit 0b10 Decoder Chip [Scout] Advanced Armor Integrity Analyzer Centrium Medium Armor Plating Antimissile System System Backup Module Drone Bay > --- WEAPON ----------- Improved Arc Projector Gamma Rifle Vortex Shotgun Improved KE Penetrator Vortex Lance > --- INVENTORY -------- Light Ion Engine Antimatter Reactor Reinforced Antimatter Reactor Heavy Siege Treads Heavy Siege Treads Heavy Siege Treads Xenon Bombardment Thruster Xenon Bombardment Thruster Xenon Bombardment Thruster Cooled Field Propulsion Drive Improved Heat Sink Advanced Heat Sink Advanced Heat Sink Terrain Scan Processor Improved Force Field Antimissile System Plasma Rifle Vortex Shotgun Latent Energy Streamer Neutron Cannon Heavy Neutron Cannon Heavy Machine Gun Bore Cannon Proton Missile Launcher Vortex Lance [Rating: 149] Favorites ----------- Power Micro Fission Core Engine Heavy Ion Engine Power Core Micro Fission Core Reactor Particle Reactor Propulsion Centrium Heavy Treads Treads Centrium Heavy Treads Leg Aluminum Leg Hover Unit Improved Hover Unit Flight Unit Xenon Bombardment Thruster Utility High-capacity Storage Unit Device Advanced Heat Sink Storage High-capacity Storage Unit Processor 0b10 Decoder Chip [Scout] Hackware Improved System Shield Protection Centrium Medium Armor Plating Weapon Gauss Rifle Energy Gun Gamma Rifle Energy Cannon Latent Energy Streamer Ballistic Gun Gauss Rifle Ballistic Cannon Light Cannon Launcher Proton Missile Launcher Special Weapon Mining Laser Slashing Weapon Makeshift Sword Piercing Weapon Vortex Lance Build | -11 -10 -10 -10 -9 -8 -8 -8 -6 -6 -6 -5 -5 -5 -5 -5 -4 -4 -4 -4 -3 -3 -2 -1 ------- Run | Scr Mat Min Exi Min Mat Sto Rec Fac Low Low Fac Ext Cet Arc Hub Fac Upp Upp War Pro Res Res Acc Slots Evolved 18 | . . . . . 4 . . 4 . . 2 . . . . 2 . . . . 2 2 2 Power 1 | . . . . . . . . . . . 1 . . . . . . . . . . . . Propulsion 6 | . . . . . . . . 2 . . . . . . . . . . . . . 2 2 Utility 8 | . . . . . 2 . . 2 . . 1 . . . . 1 . . . . 2 . . Weapon 3 | . . . . . 2 . . . . . . . . . . 1 . . . . . . . Parts Attached 226 | 7 4 . 1 1 20 12 . 8 5 1 6 19 20 4 4 7 4 2 6 9 69 14 3 Power 21 | 1 . . . 1 2 . . . . 1 1 . 2 1 1 . 1 . 1 1 6 2 . Engine 4 | 1 . . . 1 1 . . . . 1 . . . . . . . . . . . . . Core 5 | . . . . . 1 . . . . . 1 . 1 . . . 1 . . . 1 . . Reactor 12 | . . . . . . . . . . . . . 1 1 1 . . . 1 1 5 2 . Propulsion 35 | 2 . . 1 . 2 1 . 3 2 . . 2 3 . . 4 . . . 1 9 4 1 Treads 13 | . . . . . . . . . . . . . 2 . . 3 . . . 1 5 2 . Leg 13 | 2 . . 1 . 2 1 . 2 2 . . 2 1 . . . . . . . . . . Wheel . | . . . . . . . . . . . . . . . . . . . . . . . . Hover 1 | . . . . . . . . 1 . . . . . . . . . . . . . . . Flight 8 | . . . . . . . . . . . . . . . . 1 . . . . 4 2 1 Utility 62 | 2 2 . . . 3 5 . 4 2 . 3 3 4 . 1 1 1 1 1 3 22 3 1 Device 31 | 1 . . . . 2 2 . . . . 1 . . . 1 1 . 1 1 2 16 2 1 Storage 11 | 1 2 . . . 1 1 . 3 . . . 3 . . . . . . . . . . . Processor 7 | . . . . . . 1 . . 2 . . . . . . . . . . . 4 . . Hackware 1 | . . . . . . . . . . . . . . . . . . . . . . 1 . Protection 12 | . . . . . . 1 . 1 . . 2 . 4 . . . 1 . . 1 2 . . Artifact . | . . . . . . . . . . . . . . . . . . . . . . . . Weapon 108 | 2 2 . . . 13 6 . 1 1 . 2 14 11 3 2 2 2 1 4 4 32 5 1 Energy Gun 24 | . . . . . 4 1 . . . . . . 2 . . . . . . . 17 . . Energy Cannon 8 | . . . . . 1 1 . . . . . 1 1 . . . . . . . 4 . . Ballistic Gun 37 | 2 . . . . 2 3 . 1 1 . 1 8 5 3 2 1 2 . 1 1 4 . . Ballistic Cannon 14 | . 2 . . . 4 . . . . . . . . . . 1 . . 3 2 2 . . Launcher 12 | . . . . . . . . . . . . . 3 . . . . 1 . 1 1 5 1 Special Weapon 3 | . . . . . 2 1 . . . . . . . . . . . . . . . . . Impact Weapon . | . . . . . . . . . . . . . . . . . . . . . . . . Slashing Weapon 6 | . . . . . . . . . . . 1 5 . . . . . . . . . . . Piercing Weapon 4 | . . . . . . . . . . . . . . . . . . . . . 4 . . Special Melee Weapon . | . . . . . . . . . . . . . . . . . . . . . . . . Unidentified Prototypes 19 | . . . . . 3 1 . . . . . . 4 1 . 1 . . . 1 6 2 . Parts Lost 103 | . . . . . . 4 . . 2 . . 2 7 1 4 2 4 . 3 3 54 9 8 Power 13 | . . . . . . . . . . . . . 1 . 1 . 2 . . . 7 1 1 Propulsion 21 | . . . . . . . . . 2 . . . 3 . . . . . . 1 6 4 5 Utility 35 | . . . . . . 3 . . . . . . 2 . 1 . 1 . 1 2 20 3 2 Weapon 34 | . . . . . . 1 . . . . . 2 1 1 2 2 1 . 2 . 21 1 . Highest Loss Streak 15 | . . . . . . 2 . . 2 . . 1 6 1 3 1 5 . 3 1 15 4 5 Average Slot Usage (%) 86 | . 100 100 100 100 99 95 85 99 99 100 95 93 88 87 87 87 83 84 86 77 82 43 23 Engine 3 | . 14 14 14 14 8 9 9 6 6 6 5 5 . . . . . . . . . . . Core 2 | . . . . . . . . . . . 4 5 5 1 . . 4 5 5 5 2 . . Reactor 2 | . . . . . . . . . . . . . 3 9 10 10 . . 2 5 5 5 2 Treads 5 | . . . . . . . . . . . . . 9 11 11 8 10 10 10 10 8 6 . Leg 9 | . 28 28 28 28 17 18 18 25 25 26 23 23 2 . . . . . . . . . . Device 7 | . 2 . . . 17 7 9 3 . . 1 . . . . 9 5 5 5 9 20 5 3 Storage 16 | . 25 28 28 28 18 18 18 32 25 20 17 17 17 17 17 15 15 15 15 15 13 . . Processor 6 | . . . . . . . . . 6 13 11 11 11 11 11 10 10 10 9 5 6 . . Protection 4 | . . . . . . 5 . 2 6 6 5 5 10 11 10 5 9 10 9 5 2 . . Energy Gun 1 | . . . . . 3 3 . . . . . . . . . . . . . . 6 4 . Ballistic Gun 13 | . 4 . . . 16 28 31 26 26 26 22 16 14 22 23 20 20 19 7 3 3 1 . Ballistic Cannon 5 | . 23 28 28 28 12 1 . . . . . . . . . 4 5 5 12 15 3 . . Naked Turns 22 | . . . . . . . . . . . . . . . . . . . . . . . 22 Heaviest Build 196 | 12 27 27 27 27 56 59 56 77 77 65 92 151 161 166 166 169 146 147 173 196 194 42 27 Greatest Support 160 | 20 20 20 20 20 25 25 25 55 60 60 60 70 160 160 160 160 160 160 160 160 160 43 43 Greatest Overweight (x) 13 | . 1 1 1 1 2 2 2 2 1 1 1 2 3 1 1 13 . . 1 1 2 1 1 Average Overweight (x) . | . . 1 1 1 1 1 2 1 1 1 1 1 . . . . . . . 1 1 . . Largest Inventory Capacity 28 | 6 12 12 12 12 14 16 16 24 24 20 20 28 28 28 28 28 28 28 28 28 28 4 4 Average Capacity 22 | 5 11 12 12 12 12 14 16 23 21 20 20 24 28 28 28 28 28 28 28 28 27 4 4 Most Carried 28 | 6 12 12 12 12 14 16 16 22 24 20 20 28 28 28 28 28 28 28 28 26 28 4 4 Average Carried 21 | 4 10 11 11 12 12 14 16 15 20 19 19 24 27 27 27 27 27 28 27 23 24 3 3 Final Capacity 28 | 6 12 12 12 12 14 16 16 24 20 20 20 28 28 28 28 28 28 28 28 28 4 4 4 Final Carried 28 | 6 12 12 12 12 14 16 16 22 20 20 20 28 28 27 28 28 28 28 28 25 4 2 3 Class Distribution -------------------- 36% | Scavenger-Tank 12% | Mutant 10% | Skirmisher 10% | Hauler-Skirmisher 8% | Scavenger-Mutant 7% | Hauler-Mutant 4% | Hauler-Tank 4% | Scavenger-Skirmisher 3% | Derelict-Mutant Dominant Class ---------------- Mutant | -10/Materials Mutant | -10/Mines Mutant | -10/Exiles Mutant | -9/Mines Skirmisher | -8/Materials Skirmisher | -8/Storage Skirmisher | -8/Recycling Hauler-Skirmisher | -6/Factory Hauler-Tank | -6/Lower Caves Hauler-Tank | -6/Lower Caves Hauler-Skirmisher | -5/Factory Hauler-Skirmisher | -5/Extension Scavenger-Tank | -5/Cetus Scavenger-Tank | -5/Archives Scavenger-Tank | -5/Hub_04(d) Scavenger-Tank | -4/Factory Scavenger-Tank | -4/Upper Caves Scavenger-Tank | -4/Upper Caves Scavenger-Tank | -4/Warlord Scavenger-Tank | -3/Proximity Caves Hauler-Mutant | -3/Research Scavenger-Mutant | -2/Research Sprinter | -1/Access Resources | -11 -10 -10 -10 -9 -8 -8 -8 -6 -6 -6 -5 -5 -5 -5 -5 -4 -4 -4 -4 -3 -3 -2 -1 ----------- Run | Scr Mat Min Exi Min Mat Sto Rec Fac Low Low Fac Ext Cet Arc Hub Fac Upp Upp War Pro Res Res Acc Matter Collected 6928 | 272 281 181 . 17 447 564 148 225 87 23 . 595 344 364 313 358 415 287 150 425 1405 . 27 Remotely 10 | 10 . . . . . . . . . . . . . . . . . . . . . . . Salvage Created 9752 | 85 302 86 . 17 736 690 240 . 93 49 . 686 810 453 647 431 368 509 63 454 2971 62 . Parts 505 | 1 16 8 . 6 42 44 12 . 8 2 . 35 51 15 46 17 15 26 3 12 139 7 . Haulers Intercepted 6 | . . . . . 2 2 . . . . . 1 . . . . . . . . 1 . . Recyclers Shooed 2 | . 1 . . . . . . . . . . . . . . . . . . . 1 . . Parts Field Recycled . | . . . . . . . . . . . . . . . . . . . . . . . . Retrieved Matter . | . . . . . . . . . . . . . . . . . . . . . . . . Parts Self-Destructed 124 | . . . . . . . . . 8 2 . . . . . . 12 25 75 2 . . . Prevented 30 | . . . . . . . . . . . . . . . . . 3 . 17 10 . . . Kills | -11 -10 -10 -10 -9 -8 -8 -8 -6 -6 -6 -5 -5 -5 -5 -5 -4 -4 -4 -4 -3 -3 -2 -1 ------- Run | Scr Mat Min Exi Min Mat Sto Rec Fac Low Low Fac Ext Cet Arc Hub Fac Upp Upp War Pro Res Res Acc Combat Hostiles Destroyed 158 | . 6 4 . 3 10 13 3 . 4 1 . 8 14 4 5 7 6 11 3 6 48 2 . Melee 4 | . . . . . . . . . . . . 1 . . . . . . . . 3 . . Guns 78 | . . . . . 4 12 3 . 4 1 . 5 2 4 5 7 6 7 . . 17 1 . Cannons 32 | . 6 4 . 3 1 . . . . . . . . . . . . 1 1 4 12 . . AOE 30 | . . . . . 4 1 . . . . . . 8 . . . . 3 2 . 11 1 . Classes Destroyed 18 | 1 1 1 . . 7 1 1 . . 1 . 1 . 1 . . . . 1 . 2 . . Worker 15 | . . . . . 4 . . . . . . . . . 6 . . . . . 4 1 . Builder 12 | . . . . . 1 2 . . . . . . . . 3 . . . . . 6 . . Tunneler 1 | . . . . . . . . . . . . . . . . . . . . . 1 . . Hauler 6 | . . . . . 2 2 . . . . . 1 . . . . . . . . 1 . . Recycler 8 | 1 2 . . . . . 3 . . . . . . . 1 . . . . . 1 . . Mechanic 1 | . . . . . 1 . . . . . . . . . . . . . . . . . . Operator 2 | . . . . . . . . . . . . . . 2 . . . . . . . . . Drone 4 | . . . . . . . 3 . . . . . . . . . . . . . . 1 . Watcher 9 | . . . . . 3 . . . . . . 1 1 . 2 . . . . . 2 . . Swarmer 32 | . . 2 . 3 . 4 . . 4 . . . 5 . . . . 4 . . 10 . . Saboteur 1 | . . . . . . . . . . . . . . . . . . . . . 1 . . Grunt 41 | . 6 2 . . 6 5 . . . . . 2 1 . 2 . 1 . . 5 11 . . Brawler 5 | . . . . . . 1 . . . . . . 1 . . . . . . 1 2 . . Sentry 20 | . . . . . 2 3 . . . . . 3 . 4 1 1 1 1 . . 4 . . Hunter 18 | . . . . . 2 . . . . . . 2 3 . 1 2 2 2 . . 4 . . Programmer 31 | . . . . . . . . . . 1 . . . . 1 4 2 4 2 . 16 1 . Behemoth 1 | . . . . . . . . . . . . 1 . . . . . . . . . . . Cetus Guard 4 | . . . . . . . . . . . . . 4 . . . . . . . . . . Executioner 1 | . . . . . . . . . . . . . . . . . . . 1 . . . . Best Kill Streak 10 | 1 4 2 . 3 7 4 4 . 4 1 . 2 7 1 8 3 2 4 3 3 10 2 . Combat Bots Only 8 | . 3 2 . 3 3 4 2 . 4 1 . 2 7 1 3 3 2 4 3 3 8 1 . Max Kills in Single Turn 7 | 1 1 1 . 1 4 1 1 . 2 1 . 2 5 1 7 1 1 3 1 2 5 2 . Gunslinging . | . . . . . . . . . . . . . . . . . . . . . . . . Exploded 5 | . . . . . 2 1 . . . . . . 5 . . . . 3 1 . 3 1 . Melee 1 | . . . . . . . . . . . . 1 . . . . . . . . 1 . . Uniques/NPCs Destroyed . | . . . . . . . . . . . . . . . . . . . . . . . . Combat | -11 -10 -10 -10 -9 -8 -8 -8 -6 -6 -6 -5 -5 -5 -5 -5 -4 -4 -4 -4 -3 -3 -2 -1 -------- Run | Scr Mat Min Exi Min Mat Sto Rec Fac Low Low Fac Ext Cet Arc Hub Fac Upp Upp War Pro Res Res Acc Damage Taken 21951 | . 141 145 . 89 206 804 . . 177 . . 1651 1451 1480 785 438 1203 212 1432 759 7567 1446 1965 Core 3302 | . 77 10 . 8 19 148 . . 17 . . 69 102 107 34 19 97 20 141 29 486 306 1613 Absorbed by Shields 300 | . . . . . 61 . . . . . . . . . . . . . 20 . 193 . 26 Reduced by Siege Mode 9 | . . . . . . . . . . . . . . . . . . . . 9 . . . Core Remaining (%) 76 | 100 . . . 62 . . 69 . . 98 . . . . 68 . . . . 73 62 78 . Volleys Fired 466 | 1 23 10 . 5 39 48 13 . 3 1 2 32 22 22 16 29 17 13 5 15 143 6 1 Largest 5 | 2 2 2 . 2 4 4 4 . 4 4 4 4 3 4 4 5 5 4 4 4 4 3 1 Hottest 294 | 40 70 70 . 70 152 145 109 . 106 103 103 106 117 119 119 174 181 146 206 239 294 194 46 Shots Fired 1150 | 2 37 20 . 10 87 136 40 . 12 4 8 104 40 87 56 81 71 49 11 34 252 8 1 Gun 781 | 2 2 . . . 47 114 40 . 12 4 8 101 22 87 56 53 54 36 2 2 136 3 . Cannon 303 | . 35 20 . 10 25 7 . . . . . 3 4 . . 28 17 12 6 27 109 . . Launcher 36 | . . . . . . . . . . . . . 14 . . . . 1 3 5 7 5 1 Special 30 | . . . . . 15 15 . . . . . . . . . . . . . . . . . Kinetic 888 | 2 37 20 . 10 56 102 40 . 12 4 8 101 22 87 56 81 71 48 8 29 93 1 . Thermal 148 | . . . . . 30 32 . . . . . . . . . . . . . . 85 1 . Explosive 10 | . . . . . . . . . . . . . . . . . . 1 3 . . 5 1 Electromagnetic 64 | . . . . . 1 2 . . . . . 3 18 . . . . . . 5 34 1 . Entropic 40 | . . . . . . . . . . . . . . . . . . . . . 40 . . Robot Hit Streak 20 | 2 6 3 . 4 7 6 4 . 3 1 2 8 9 18 8 11 6 12 8 16 20 1 . Robot Miss Streak 7 | . 5 7 . 2 3 6 6 . 4 1 4 5 3 2 3 3 3 2 1 1 3 3 . Penetration Max 1 | . . . . . 1 1 . . . . . 1 1 1 1 . . . . . . . . Secondary Targets 7 | . . . . . . 1 . . . . . 1 1 1 2 . . . . . 1 . . Max Gunslinging Chain 1 | . . . . . . 1 . . . . . 1 1 1 1 . . . . . 1 . . Shots Hit Robots 665 | 2 20 8 . 6 42 60 10 . 4 1 2 75 24 65 33 38 37 28 8 23 178 1 . Core Hits 412 | 2 10 5 . 3 31 27 6 . 4 2 . 32 33 23 30 17 15 19 6 10 130 7 . Critical Hits 43 | . . . . . 1 1 . . . . . 1 1 . 5 4 4 4 1 6 15 . . Critical Kills 22 | . . . . . 1 1 . . . . . 1 . . 3 2 3 3 . 2 6 . . Critical Parts Destroyed 18 | . . . . . . . . . . . . . 1 . 2 2 1 1 1 3 7 . . Melee Attacks 39 | . . . . . . . . . . . 3 18 . . . . . . . . 18 . . Impact . | . . . . . . . . . . . . . . . . . . . . . . . . Slashing 21 | . . . . . . . . . . . 3 18 . . . . . . . . . . . Piercing . | . . . . . . . . . . . . . . . . . . . . . . . . Entropic 18 | . . . . . . . . . . . . . . . . . . . . . 18 . . Sneak Attacks 1 | . . . . . . . . . . . . 1 . . . . . . . . . . . Combat Hostiles 1 | . . . . . . . . . . . . 1 . . . . . . . . . . . Follow-up Attacks 5 | . . . . . . . . . . . . 5 . . . . . . . . . . . Damage Inflicted 25443 | 15 407 200 . 102 1847 1225 229 . 120 50 57 2133 1600 1492 1869 913 781 872 532 778 9819 402 . Guns 11782 | 15 18 . . . 672 1089 229 . 120 50 57 1246 275 1492 767 789 618 518 51 13 3735 28 . Cannons 3652 | . 389 200 . 102 146 29 . . . . . 18 6 . . 92 163 92 134 410 1871 . . Explosions 8782 | . . . . . 1029 107 . . . . . 410 1319 . 1102 . . 262 337 355 3487 374 . Melee 1185 | . . . . . . . . . . . . 459 . . . . . . . . 726 . . Ramming 42 | . . . . . . . . . . . . . . . . 32 . . 10 . . . . Kinetic 10882 | 15 407 200 . 102 592 944 229 . 120 50 57 1246 275 1492 767 881 781 610 185 423 1506 . . Thermal 2585 | . . . . . 220 160 . . . . . . 332 . . . . . . . 1845 28 . Explosive 2272 | . . . . . 294 . . . . . . . . . . . . 262 337 . 1005 374 . Electromagnetic 6348 | . . . . . 741 121 . . . . . 428 993 . 1102 . . . . 355 2608 . . Impact . | . . . . . . . . . . . . . . . . . . . . . . . . Slashing 459 | . . . . . . . . . . . . 459 . . . . . . . . . . . Piercing . | . . . . . . . . . . . . . . . . . . . . . . . . Entropic 2855 | . . . . . . . . . . . . . . . . . . . . . 2855 . . Highest Corruption 39 | . . . . . 3 9 9 . . . . 4 9 9 13 1 3 5 9 9 39 6 . Average Corruption 11 | . . . . . 3 5 9 . . . . 3 8 9 10 1 1 4 6 9 21 5 . Corruption Purged 20 | . . . . . . . . . . . . . . . . . . . . . 20 . . Effects 387 | . . . . . . 22 30 . . . . 3 21 26 25 1 9 12 4 24 207 3 . Message Errors 84 | . . . . . . 4 10 . . . . 1 9 4 7 . 6 4 1 3 33 2 . Matter Fused 56 | . . . . . . 3 6 . . . . 1 2 3 3 . . 4 . 6 27 1 . Heat Flow Errors 29 | . . . . . . 2 2 . . . . . 1 4 4 . . 1 . 2 13 . . Energy Discharges 31 | . . . . . . 1 3 . . . . . 3 2 3 . 1 1 . 2 15 . . Parts Rejected 1 | . . . . . . . 1 . . . . . . . . . . . . . . . . Data Loss (minor) 22 | . . . . . . . 1 . . . . 1 1 . 1 . 1 . 1 2 14 . . Data Loss (major) 12 | . . . . . . 1 . . . . . . . 1 1 . . . . 2 7 . . Misfires 17 | . . . . . . 3 . . . . . . 1 2 . . . . . 2 9 . . Alerts 4 | . . . . . . . . . . . . . . . . . . . . . 4 . . Misdirections 24 | . . . . . . . . . . . . . . . 1 . . . . . 23 . . Targeting Errors 96 | . . . . . . 8 7 . . . . . 3 10 2 . . 2 2 3 59 . . Weapon Failures 11 | . . . . . . . . . . . . . 1 . 3 1 1 . . 2 3 . . Overload Shots . | . . . . . . . . . . . . . . . . . . . . . . . . Overflow Damage 566 | . . . . 8 5 . . . . . . . 116 . 46 . 22 9 . . 283 77 . Projectiles 65 | . . . . 8 . . . . . . . . . . . . 22 9 . . 26 . . Explosions 451 | . . . . . 5 . . . . . . . 116 . 46 . . . . . 207 77 . Melee 50 | . . . . . . . . . . . . . . . . . . . . . 50 . . Knockbacks 28 | . 8 3 . 2 2 . . . . . . . . . . 2 2 . 2 3 4 . . Impact 1 | . . . . . . . . . . . . . . . . . . . 1 . . . . Kinetic 26 | . 8 3 . 2 2 . . . . . . . . . . 2 2 . 1 3 3 . . Secondary 1 | . . . . . . . . . . . . . . . . . . . . . 1 . . Self-Inflicted Damage 1078 | . . . . . 106 11 . . . . . . 190 . 180 . . . 32 6 297 142 114 Shots 30 | . . . . . 2 1 . . . . . . 8 . 2 . . . 2 2 9 2 2 Rammed 2 | . . . . . . . . . . . . . . . . 1 . . 1 . . . . Targets Rammed 2 | . . . . . . . . . . . . . . . . 1 . . 1 . . . . Kicked . | . . . . . . . . . . . . . . . . . . . . . . . . Crushed . | . . . . . . . . . . . . . . . . . . . . . . . . Highest Temperature 502 | . 87 54 . 45 72 474 250 . 115 44 144 430 165 418 352 123 306 274 316 502 281 94 . Average Temperature 114 | . 29 24 . 23 18 143 48 . 52 27 72 141 59 178 142 44 109 86 137 223 89 48 . Received Heat Transfer 1871 | . 78 18 . . 30 243 . . . . . 159 117 216 99 18 18 9 63 171 529 18 85 Effects 35 | . . . . . . 3 . . . . . 6 . 11 2 . 1 . 2 8 2 . . Shutdowns 14 | . . . . . . 1 . . . . . 3 . 4 1 . . . . 5 . . . Energy Bleed 4 | . . . . . . 1 . . . . . 1 . 2 . . . . . . . . . Interference 8 | . . . . . . . . . . . . . . 3 . . 1 . 2 . 2 . . Matter Decay 4 | . . . . . . . . . . . . 2 . . 1 . . . . 1 . . . Short Circuit 1 | . . . . . . . . . . . . . . . . . . . . 1 . . . Damage (minor) 4 | . . . . . . 1 . . . . . . . 2 . . . . . 1 . . . Siege Activations 2 | . . . . . . . . . . . . . . . . . . . . 1 1 . . Total Turns 19 | . . . . . . . . . . . . . . . . . . . . 10 9 . . Longest Duration 10 | . . . . . . . . . . . . . . . . . . . . 10 9 . . Robots Corrupted 14 | . . . . . 1 . . . . . . 2 4 . . . . . . 2 5 . . Combat Hostiles 14 | . . . . . 1 . . . . . . 2 4 . . . . . . 2 5 . . Parts Fried 43 | . . . . . 6 . . . . . . 1 8 . 10 . . . . . 18 . . Impact Corruptions . | . . . . . . . . . . . . . . . . . . . . . . . . Robots Melted . | . . . . . . . . . . . . . . . . . . . . . . . . Combat Hostiles . | . . . . . . . . . . . . . . . . . . . . . . . . Parts Melted 2 | . . . . . . . . . . . . . 1 . . . . . . . 1 . . Heat Transferred 2756 | . . . . . 407 296 . . . . . . 300 . . . . . . . 1716 37 . Parts Sabotaged 5 | . . . . . . . . . . . . . . . . . . . 5 . . . . Parts Stolen . | . . . . . . . . . . . . . . . . . . . . . . . . Parts Stripped . | . . . . . . . . . . . . . . . . . . . . . . . . Power Chain Reactions 7 | . . . . . . . . . . . . . 5 . . . . . . . 2 . . Missiles Intercepted . | . . . . . . . . . . . . . . . . . . . . . . . . Latent Energy Used 1548 | . . . . . 200 72 . . . . . 152 184 . . . . . . . 940 . . LE Corruption 30 | . . . . . 3 2 . . . . . 4 5 . . . . . . . 16 . . Alert | -11 -10 -10 -10 -9 -8 -8 -8 -6 -6 -6 -5 -5 -5 -5 -5 -4 -4 -4 -4 -3 -3 -2 -1 ------- Run | Scr Mat Min Exi Min Mat Sto Rec Fac Low Low Fac Ext Cet Arc Hub Fac Upp Upp War Pro Res Res Acc Peak Influence 930 | 5 208 118 . 70 218 450 165 920 . . 289 193 416 261 930 505 . . . . 664 614 547 Initial 915 | . 3 3 . . 27 91 106 915 . . 247 43 72 90 23 455 . . . . 74 297 256 Average 240 | . 94 106 . 67 38 260 79 917 . . 277 50 249 186 138 293 . . . . 387 407 395 Maximum Alert Level 3 | . 1 . . . 1 2 . 3 . . 1 . 2 1 3 2 . . . . 2 2 2 Low Security (%) 50 | 100 82 100 . 100 98 19 100 . . . 2 100 20 42 94 22 . . . . 22 . . Level 1 28 | . 17 . . . 1 72 . . . . 97 . 76 57 . 58 . . . . 30 33 52 Level 2 18 | . . . . . . 7 . . . . . . 2 . . 18 . . . . 47 66 47 Level 3 2 | . . . . . . . . 100 . . . . . . 5 . . . . . . . . Level 4 . | . . . . . . . . . . . . . . . . . . . . . . . . Level 5 . | . . . . . . . . . . . . . . . . . . . . . . . . High Security . | . . . . . . . . . . . . . . . . . . . . . . . . Max Security . | . . . . . . . . . . . . . . . . . . . . . . . . Squads Dispatched 31 | . 1 . . . 2 1 . 2 . . 1 1 . . 3 3 . . . . 12 4 1 Investigation 2 | . . . . . 1 . . . . . . 1 . . . . . . . . . . . Extermination 12 | . . . . . . . . . . . . . . . 1 3 . . . . 6 1 1 Reinforcement 13 | . 1 . . . 1 1 . 1 . . 1 . . . 1 . . . . . 4 3 . Assault 3 | . . . . . . . . . . . . . . . 1 . . . . . 2 . . Garrison 1 | . . . . . . . . 1 . . . . . . . . . . . . . . . Intercept . | . . . . . . . . . . . . . . . . . . . . . . . . Construction Impeded 4 | . . . . . 1 . . . . . . . . . 1 . . . . . 2 . . Haulers Reinforced 1 | . . . . . . . . 1 . . . . . . . . . . . . . . . Stealth | -11 -10 -10 -10 -9 -8 -8 -8 -6 -6 -6 -5 -5 -5 -5 -5 -4 -4 -4 -4 -3 -3 -2 -1 --------- Run | Scr Mat Min Exi Min Mat Sto Rec Fac Low Low Fac Ext Cet Arc Hub Fac Upp Upp War Pro Res Res Acc Distress Signals 21 | . 2 . . . 2 . . 2 . . . . 2 . 2 1 . . . . 7 2 1 Communications Jammed . | . . . . . . . . . . . . . . . . . . . . . . . . Distress Signals . | . . . . . . . . . . . . . . . . . . . . . . . . Times Spotted 325 | . 11 4 . 3 13 13 6 . 4 . 1 27 21 13 7 11 6 11 28 9 75 35 27 Peak Tracking Total 16 | . 4 3 . 3 3 5 2 . 4 . 1 6 8 1 5 4 3 4 15 4 9 16 15 Tactical Retreats 30 | . 1 . . . . 1 . . . . . 4 2 . 2 1 . . 2 1 5 8 3 Traps | -11 -10 -10 -10 -9 -8 -8 -8 -6 -6 -6 -5 -5 -5 -5 -5 -4 -4 -4 -4 -3 -3 -2 -1 ------- Run | Scr Mat Min Exi Min Mat Sto Rec Fac Low Low Fac Ext Cet Arc Hub Fac Upp Upp War Pro Res Res Acc Traps Triggered 2 | . . . . . . . . . . . . . . . 1 . . . . . . 1 . Indirectly . | . . . . . . . . . . . . . . . . . . . . . . . . Trap Hack Attempts . | . . . . . . . . . . . . . . . . . . . . . . . . Triggered . | . . . . . . . . . . . . . . . . . . . . . . . . Disarmed . | . . . . . . . . . . . . . . . . . . . . . . . . Reprogrammed . | . . . . . . . . . . . . . . . . . . . . . . . . Reused . | . . . . . . . . . . . . . . . . . . . . . . . . Traps Extracted . | . . . . . . . . . . . . . . . . . . . . . . . . Installed . | . . . . . . . . . . . . . . . . . . . . . . . . Triggered 12 | . . . . . . . . . . 2 . . . . . . 1 . 6 . 3 . . Machines | -11 -10 -10 -10 -9 -8 -8 -8 -6 -6 -6 -5 -5 -5 -5 -5 -4 -4 -4 -4 -3 -3 -2 -1 ---------- Run | Scr Mat Min Exi Min Mat Sto Rec Fac Low Low Fac Ext Cet Arc Hub Fac Upp Upp War Pro Res Res Acc Machines Disabled 49 | . . . . . 7 2 1 . . . . 1 5 2 19 . . . . 2 6 2 2 Max in Single Turn 19 | . . . . . 3 1 1 . . . . . 3 2 19 . . . . 1 1 1 2 Garrison Access 2 | . . . . . . . . . . . . . . . 1 . . . . . . 1 . Network Hub 2 | . . . . . . . . . . . . . . . 2 . . . . . . . . Machines Sabotaged . | . . . . . . . . . . . . . . . . . . . . . . . . Garrisons Compromised . | . . . . . . . . . . . . . . . . . . . . . . . . Overloaded Fab Kills . | . . . . . . . . . . . . . . . . . . . . . . . . Fab Network Shutdowns . | . . . . . . . . . . . . . . . . . . . . . . . . Hacking | -11 -10 -10 -10 -9 -8 -8 -8 -6 -6 -6 -5 -5 -5 -5 -5 -4 -4 -4 -4 -3 -3 -2 -1 --------- Run | Scr Mat Min Exi Min Mat Sto Rec Fac Low Low Fac Ext Cet Arc Hub Fac Upp Upp War Pro Res Res Acc Machines Accessed 51 | . . . 2 . 5 1 1 1 1 . 2 8 3 1 4 5 . . 2 1 7 3 4 Terminals 35 | . . . . . 4 1 1 1 . . . 8 3 . 4 3 . . . . 5 2 3 Fabricators . | . . . . . . . . . . . . . . . . . . . . . . . . Repair Stations 3 | . . . . . 1 . . . . . 1 . . . . 1 . . . . . . . Recycling Units 3 | . . . . . . . . . . . 1 . . . . 1 . . . . 1 . . Scanalyzers 1 | . . . . . . . . . . . . . . . . . . . . . 1 . . Garrison Access 2 | . . . . . . . . . . . . . . . . . . . . . . 1 1 Total Hacks 197 | . . . 2 . 17 2 3 2 1 . 7 12 8 25 14 32 . . 3 1 28 16 24 Successful 109 | . . . 2 . 9 1 . 2 1 . 6 6 3 25 11 13 . . 3 1 10 6 10 Failed 86 | . . . . . 8 1 3 . . . 1 6 5 . 3 19 . . . . 16 10 14 Catastrophic 16 | . . . . . 1 . . . . . . 2 1 . . 2 . . . . 5 1 4 Database Lockouts 2 | . . . . . . . . . . . . . . . . . . . . . 2 . . Manual 20 | . . . 1 . 1 3 . 1 . . . 3 . . 1 5 . . . . 2 . 3 Terminals 128 | . . . . . 15 2 3 2 . . . 12 8 . 14 18 . . . . 21 14 19 Fabricators . | . . . . . . . . . . . . . . . . . . . . . . . . Repair Stations 18 | . . . . . 2 . . . . . 5 . . . . 11 . . . . . . . Recycling Units 6 | . . . . . . . . . . . 2 . . . . 3 . . . . 1 . . Scanalyzers 6 | . . . . . . . . . . . . . . . . . . . . . 6 . . Garrison Access 7 | . . . . . . . . . . . . . . . . . . . . . . 2 5 Terminal Hacks 85 | . . . 2 . 7 . . 1 1 . . 6 3 25 11 6 . . 3 1 6 5 8 Record 66 | . . . 1 . 3 . . . . . . 2 3 25 11 5 . . 2 1 5 4 4 Prototype ID Bank 3 | . . . . . 2 . . 1 . . . . . . . . . . . . . . . Open Door 6 | . . . . . . . . . 1 . . 4 . . . . . . 1 . . . . Level Access Points 1 | . . . . . . . . . . . . . . . . . . . . . . . 1 Branch Access Points 1 | . . . . . 1 . . . . . . . . . . . . . . . . . . Emergency Access Points 1 | . . . . . . . . . . . . . . . . . . . . . . . 1 Unreport Threat 2 | . . . . . 1 . . . . . . . . . . 1 . . . . . . . Locate Traps 2 | . . . . . . . . . . . . . . . . . . . . . . . 2 Recall Reinforcements 1 | . . . . . . . . . . . . . . . . . . . . . 1 . . Zone Layout 1 | . . . . . . . . . . . . . . . . . . . . . . 1 . EX-Prototype ID Bank 1 | . . . 1 . . . . . . . . . . . . . . . . . . . . Fabricator Hacks . | . . . . . . . . . . . . . . . . . . . . . . . . Repair Station Hacks 10 | . . . . . 2 . . . . . 4 . . . . 4 . . . . . . . Scan Component 5 | . . . . . 1 . . . . . 2 . . . . 2 . . . . . . . Repair 5 | . . . . . 1 . . . . . 2 . . . . 2 . . . . . . . Recycling Unit Hacks 4 | . . . . . . . . . . . 2 . . . . 2 . . . . . . . Retrieve Matter 2 | . . . . . . . . . . . 1 . . . . 1 . . . . . . . Retrieve Components 2 | . . . . . . . . . . . 1 . . . . 1 . . . . . . . Scanalyzer 3 | . . . . . . . . . . . . . . . . . . . . . 3 . . Insert Component 2 | . . . . . . . . . . . . . . . . . . . . . 2 . . Analyze 1 | . . . . . . . . . . . . . . . . . . . . . 1 . . Garrison Access Hacks 1 | . . . . . . . . . . . . . . . . . . . . . . 1 . Seal Access 1 | . . . . . . . . . . . . . . . . . . . . . . 1 . Unauthorized Hacks 6 | . . . . . . 1 . 1 . . . . . . . 1 . . . . 1 . 2 Terminals 6 | . . . . . . 1 . 1 . . . . . . . 1 . . . . 1 . 2 Assimilate 3 | . . . . . . . . . . . . . . . . 1 . . . . . . 2 Botnet 3 | . . . . . . 1 . 1 . . . . . . . . . . . . 1 . . Fabricators . | . . . . . . . . . . . . . . . . . . . . . . . . Repair Stations . | . . . . . . . . . . . . . . . . . . . . . . . . Recycling Units . | . . . . . . . . . . . . . . . . . . . . . . . . Scanalyzers . | . . . . . . . . . . . . . . . . . . . . . . . . Garrison Access . | . . . . . . . . . . . . . . . . . . . . . . . . Data Cores Recovered 1 | . . . . . . . . 1 . . . . . . . . . . . . . . . Used . | . . . . . . . . . . . . . . . . . . . . . . . . Hacking Detections 38 | . . . . . 5 . 1 1 . . 2 5 3 . 4 4 . . . . 7 2 4 Full Trace Events 2 | . . . . . 1 . . . . . . 1 . . . . . . . . . . . Feedback Events . | . . . . . . . . . . . . . . . . . . . . . . . . Feedback Blocked . | . . . . . . . . . . . . . . . . . . . . . . . . Robot Schematics Acquired . | . . . . . . . . . . . . . . . . . . . . . . . . Robots Built . | . . . . . . . . . . . . . . . . . . . . . . . . Matter . | . . . . . . . . . . . . . . . . . . . . . . . . Time . | . . . . . . . . . . . . . . . . . . . . . . . . Total Robot Build Rating . | . . . . . . . . . . . . . . . . . . . . . . . . Part Schematics Acquired 1 | . . . . . . . . . . . . . . . . . . . . . 1 . . Parts Built . | . . . . . . . . . . . . . . . . . . . . . . . . Matter . | . . . . . . . . . . . . . . . . . . . . . . . . Time . | . . . . . . . . . . . . . . . . . . . . . . . . Total Part Build Rating . | . . . . . . . . . . . . . . . . . . . . . . . . Parts Repaired 5 | . . . . . 1 . . . . . 2 . . . . 2 . . . . . . . Time 283 | . . . . . 26 . . . . . 41 . . . . 216 . . . . . . . Parts Recycled . | . . . . . . . . . . . . . . . . . . . . . . . . Recycled Matter . | . . . . . . . . . . . . . . . . . . . . . . . . Retrieved Matter . | . . . . . . . . . . . . . . . . . . . . . . . . Retrieved Components 3 | . . . . . . . . . . . 2 . . . . 1 . . . . . . . Parts Scanalyzed 2 | . . . . . . . . . . . . . . . . . . . . . 2 . . Part Schematics Acquired 1 | . . . . . . . . . . . . . . . . . . . . . 1 . . Parts Damaged . | . . . . . . . . . . . . . . . . . . . . . . . . Bothacking | -11 -10 -10 -10 -9 -8 -8 -8 -6 -6 -6 -5 -5 -5 -5 -5 -4 -4 -4 -4 -3 -3 -2 -1 ------------ Run | Scr Mat Min Exi Min Mat Sto Rec Fac Low Low Fac Ext Cet Arc Hub Fac Upp Upp War Pro Res Res Acc Used RIF Installer . | . . . . . . . . . . . . . . . . . . . . . . . . Robots Hacked . | . . . . . . . . . . . . . . . . . . . . . . . . Non-combat . | . . . . . . . . . . . . . . . . . . . . . . . . Combat . | . . . . . . . . . . . . . . . . . . . . . . . . Robot Hacks Applied . | . . . . . . . . . . . . . . . . . . . . . . . . Relay Couplers Released 3 | . . . . . . . . . . . . . . . 3 . . . . . . . . Machine Destruction 3 | . . . . . . . . . . . . . . . 3 . . . . . . . . Robots Rewired 12 | . . . . . . . . . . . . 8 . . . . . . 4 . . . . Allies Hacked . | . . . . . . . . . . . . . . . . . . . . . . . . Hacks Repelled . | . . . . . . . . . . . . . . . . . . . . . . . . Allies | -11 -10 -10 -10 -9 -8 -8 -8 -6 -6 -6 -5 -5 -5 -5 -5 -4 -4 -4 -4 -3 -3 -2 -1 -------- Run | Scr Mat Min Exi Min Mat Sto Rec Fac Low Low Fac Ext Cet Arc Hub Fac Upp Upp War Pro Res Res Acc Total Allies 21 | . . . . . . . . . . . . 14 . . . 1 . . 4 . . . 2 Largest Group 8 | . . . . . . . . . . . . 8 1 . . 1 . . 4 . . . 2 Highest-Rated Group 230 | . . . . . . . . . . . . 230 37 . . 26 . . 214 . . . 88 Highest-Rated Ally 60 | . . . . . . . . . . . . 37 37 . . 26 . . 60 . . . 44 Total Orders 12 | . . . . . . . . . . . . . . . . . . . . . 10 . 2 STAY 2 | . . . . . . . . . . . . . . . . . . . . . . . 2 EXPLORE 7 | . . . . . . . . . . . . . . . . . . . . . 7 . . RETURN 3 | . . . . . . . . . . . . . . . . . . . . . 3 . . Ally Attacks 106 | . . . . . . . . . . . . 94 2 . . . . . 10 . . . . Total Damage 2344 | . . . . . . . . . . . . 1699 39 . . . . . 606 . . . . Kills 12 | . . . . . . . . . . . . 12 . . . . . . . . . . . Allies Corrupted . | . . . . . . . . . . . . . . . . . . . . . . . . Allies Melted . | . . . . . . . . . . . . . . . . . . . . . . . . Intel | -11 -10 -10 -10 -9 -8 -8 -8 -6 -6 -6 -5 -5 -5 -5 -5 -4 -4 -4 -4 -3 -3 -2 -1 ------- Run | Scr Mat Min Exi Min Mat Sto Rec Fac Low Low Fac Ext Cet Arc Hub Fac Upp Upp War Pro Res Res Acc Robot Analysis Total . | . . . . . . . . . . . . . . . . . . . . . . . . Derelict Logs Recovered 5 | . . . . . . . . . 2 . . . . . . . 2 1 . . . . . Drone Launches 11 | . . . . . . . . . . . . . . . . . . . . . 11 . . Drone Recoveries 7 | . . . . . . . . . . . . . . . . . . . . . 7 . . Decoded 0b10 Intel 168 | . . . . . . . . . . . 20 45 4 2 20 33 . . . . 44 . . Traps 60 | . . . . . . . . . . . 6 13 . . 3 11 . . . . 27 . . Emergency Access 32 | . . . . . . . . . . . 3 3 . . 7 2 . . . . 17 . . Items 68 | . . . . . . . . . . . 10 27 2 . 10 19 . . . . . . . Garrisons 1 | . . . . . . . . . . . . . . . . 1 . . . . . . . Exits 7 | . . . . . . . . . . . 1 2 2 2 . . . . . . . . . Exploration | -11 -10 -10 -10 -9 -8 -8 -8 -6 -6 -6 -5 -5 -5 -5 -5 -4 -4 -4 -4 -3 -3 -2 -1 ------------- Run | Scr Mat Min Exi Min Mat Sto Rec Fac Low Low Fac Ext Cet Arc Hub Fac Upp Upp War Pro Res Res Acc Turns Passed 18034 | 111 407 411 432 251 865 744 656 263 708 88 410 2071 540 475 466 1084 1010 688 1239 677 3596 559 283 Spaces Moved 10093 | 75 183 252 287 157 412 318 343 159 454 56 228 1113 271 189 221 405 587 397 683 340 1357 907 699 Core 53 | 8 . . . . . . . . . . . . . . . . . . . . . . 45 Treads 4394 | . . . . . . . . . . . . . 241 189 221 404 587 397 683 340 1332 . . Legs 4059 | 67 183 252 287 157 412 318 343 159 454 56 228 1113 30 . . . . . . . . . . Wheels . | . . . . . . . . . . . . . . . . . . . . . . . . Hover . | . . . . . . . . . . . . . . . . . . . . . . . . Flight 1587 | . . . . . . . . . . . . . . . . 1 . . . . 25 907 654 Fastest Speed 29 | 50 120 150 150 150 150 150 180 150 150 150 150 150 160 160 160 160 160 160 160 180 29 29 32 Average Speed 147 | 112 142 150 150 150 150 163 180 152 150 150 150 161 164 176 178 179 160 160 170 180 189 56 34 Slowest Speed 920 | 120 150 150 150 150 180 180 180 180 150 150 150 180 210 180 180 920 160 160 180 180 240 145 120 Overloaded Moves . | . . . . . . . . . . . . . . . . . . . . . . . . Propulsion Burnouts . | . . . . . . . . . . . . . . . . . . . . . . . . Robots Hopped 26 | . . . . . . . . . . . . . . . . . . . . . 1 15 10 Cave-ins Triggered 1 | . . . . . . 1 . . . . . . . . . . . . . . . . . Exploration Rate (%) 43 | 4 20 55 65 37 27 17 72 4 69 8 8 96 85 89 32 7 79 55 70 54 34 31 23 Regions Visited 23 Branch Regions 15 Pre-discovered Areas . | . . . . . . . . . . . . . . . . . . . . . . . . Known Exits Taken 5 | . . . . . 1 . . . . . 1 . 1 1 1 . . . . . . . . Unknown Exits Taken 18 | 1 1 1 1 1 . 1 1 1 1 1 . 1 . . . 1 1 1 1 1 1 1 . Scrap Searched 9 | . . 1 . . . . . . 1 1 . . . . . . 2 2 . 2 . . . Spaces Dug 150 | . . . . . 15 6 . . . . 3 4 . . . 11 . . . . 36 40 35 Terrain Destroyed 829 | . . . . . 86 8 3 . . . 3 13 39 8 319 27 25 26 32 12 113 80 35 Melee 13 | . . . . . . . . . . . 3 4 . . . . . . . . 6 . . Projectile 162 | . . . . . 20 8 3 . . . . 3 1 8 3 27 25 9 4 12 39 . . AOE 654 | . . . . . 66 . . . . . . 6 38 . 316 . . 17 28 . 68 80 35 Terrain Rammed . | . . . . . . . . . . . . . . . . . . . . . . . . Walls Destroyed . | . . . . . . . . . . . . . . . . . . . . . . . . Machines Disabled . | . . . . . . . . . . . . . . . . . . . . . . . . Actions | -11 -10 -10 -10 -9 -8 -8 -8 -6 -6 -6 -5 -5 -5 -5 -5 -4 -4 -4 -4 -3 -3 -2 -1 --------- Run | Scr Mat Min Exi Min Mat Sto Rec Fac Low Low Fac Ext Cet Arc Hub Fac Upp Upp War Pro Res Res Acc Total 12348 | 99 297 267 289 163 563 418 358 180 480 60 292 1337 329 276 255 713 615 426 756 377 2141 929 728 Wait 1152 | 5 62 . . . 68 31 3 . . . 41 92 . 57 11 251 1 14 5 8 473 1 29 Move 10024 | 74 182 251 286 156 411 317 342 158 453 55 227 1112 270 188 220 405 586 396 682 339 1354 879 681 Hop 21 | . . . . . . . . . . . . . . . . . . . . . 1 12 8 Pick Up 198 | 12 15 3 1 . 11 4 . 13 8 1 7 12 8 2 4 9 5 . 9 6 59 5 4 Fast Attach 44 | 1 1 . . . 8 5 . . 2 . 1 . 4 1 1 5 1 1 5 . 3 5 . Attach 116 | 6 . . . . 4 1 . 7 2 . 3 2 8 1 3 2 3 . . 6 57 8 3 Detach 16 | . . . . . . . . . 1 . 1 . 2 . . 1 . . . . 4 6 1 Swap 68 | . 3 . 1 1 8 7 . 1 1 1 2 17 8 2 . . . 1 1 3 10 1 . Drop 122 | . 11 3 1 1 14 5 . 1 10 2 5 6 7 3 . 11 2 1 13 . 19 6 1 Fire 466 | 1 23 10 . 5 39 48 13 . 3 1 2 32 22 22 16 29 17 13 5 15 143 6 1 Melee 34 | . . . . . . . . . . . 3 13 . . . . . . . . 18 . . Ram . | . . . . . . . . . . . . . . . . . . . . . . . . Kick . | . . . . . . . . . . . . . . . . . . . . . . . . Crush 1 | . . . . . . . . . . . . . . . . . . . 1 . . . . Escape Stasis . | . . . . . . . . . . . . . . . . . . . . . . . . Rewire 86 | . . . . . . . . . . . . 51 . . . . . . 35 . . . . Trap . | . . . . . . . . . . . . . . . . . . . . . . . . Miscellaneous . | . . . . . . . . . . . . . . . . . . . . . . . . Route ------- -11/Scrapyard -10/Materials -10/Mines (discovered 2 exits: [*Mat] / *Exi) -10/Exiles -9/Mines -8/Materials (discovered 3 exits: [*Fac] / *Sto x2) -8/Storage -8/Recycling -6/Factory -6/Lower Caves -6/Lower Caves -5/Factory (discovered 2 exits: *Fac / *Ext) -5/Extension (discovered 3 exits: *Fac x2 / *Cet) -5/Cetus (discovered 2 exits: *Fac / *Arc) -5/Archives (discovered 3 exits: *Fac / *Hub x2) -5/Hub_04(d) -4/Factory -4/Upper Caves -4/Upper Caves -4/Warlord -3/Proximity Caves -3/Research (discovered 3 exits: *Res / Qua x2) -2/Research -1/Access (discovered 1 exit: Sur) History --------- Turn | Location | Event 5 | -11/Scrapyard | Discovered new exit (range 15) 112 | -11/Scrapyard | Entered Materials 303 | -10/Materials | Build established: Mutant 493 | -10/Materials | Discovered new exit (range 13) 519 | -10/Materials | Entered Mines 714 | -10/Mines | Assembled infested the area 846 | -10/Mines | Met 8R-AWN 855 | -10/Mines | A weapon hastily lodged in a ceiling crevice suddenly fell to the ground 887 | -10/Mines | Discovered new exit (range 8) 924 | -10/Mines | Discovered new exit (range 5) 930 | -10/Mines | Entered Exiles 968 | -10/Exiles | Welcomed by 8R-AWN 993 | -10/Exiles | Met EX-HEX 1037 | -10/Exiles | Met EX-BIN 1053 | -10/Exiles | Aligned with FarCom system 1055 | -10/Exiles | Given EX-Vault access code 1089 | -10/Exiles | Opened EX-Vault 1099 | -10/Exiles | Found Latent Energy Streamer 1130 | -10/Exiles | Warned to stay clear of 0b10 Research branches 1236 | -10/Exiles | Met EX-DEC 1347 | -10/Exiles | Discovered new exit (range 11) 1362 | -10/Exiles | Left Exiles lab with Latent Energy Streamer 1362 | -10/Exiles | Entered Mines 1396 | -9/Mines | Met a Derelict bent on vengeance 1472 | -9/Mines | Discovered new exit (range 12) 1613 | -9/Mines | Entered Materials 1613 | -8/Materials | Evolved 4 slots: Utility x2, Weapon x2 1722 | -8/Materials | Repaired Aluminum Leg 2213 | -8/Materials | Discovered new exit (range 12) 2382 | -8/Materials | Discovered new exit (range 12) 2444 | -8/Materials | Identified exit to Storage 2478 | -8/Materials | Entered Storage 2929 | -8/Storage | Build established: Skirmisher 3026 | -8/Storage | Crushed by falling debris 3217 | -8/Storage | Used back door to open Recycling access 3217 | -8/Storage | Discovered new exit (range 4) 3222 | -8/Storage | Entered Recycling 3223 | -8/Recycling | Joined Derelict attack on 0b10 via Recycling 3238 | -8/Recycling | Spotter reported a threat 3240 | -8/Recycling | Spotter reported a threat 3240 | -8/Recycling | Spotter reported a threat 3243 | -8/Recycling | Spotter reported a threat 3245 | -8/Recycling | Spotter reported a threat 3250 | -8/Recycling | Spotter reported a threat 3254 | -8/Recycling | Spotter reported a threat 3265 | -8/Recycling | Spotter reported a threat 3316 | -8/Recycling | Spotter reported a threat 3316 | -8/Recycling | Spotter reported a threat 3316 | -8/Recycling | Spotter reported a threat 3316 | -8/Recycling | Spotter reported a threat 3367 | -8/Recycling | Spotter reported a threat 3367 | -8/Recycling | Spotter reported a threat 3367 | -8/Recycling | Spotter reported a threat 3367 | -8/Recycling | Spotter reported a threat 3420 | -8/Recycling | Spotter reported a threat 3420 | -8/Recycling | Spotter reported a threat 3420 | -8/Recycling | Spotter reported a threat 3420 | -8/Recycling | Spotter reported a threat 3473 | -8/Recycling | Spotter reported a threat 3482 | -8/Recycling | Spotter reported a threat 3483 | -8/Recycling | Spotter reported a threat 3485 | -8/Recycling | Spotter reported a threat 3526 | -8/Recycling | Spotter reported a threat 3536 | -8/Recycling | Spotter reported a threat 3557 | -8/Recycling | Spotter reported a threat 3592 | -8/Recycling | Spotter reported a threat 3604 | -8/Recycling | Spotter reported a threat 3610 | -8/Recycling | Spotter reported a threat 3629 | -8/Recycling | Spotter reported a threat 3657 | -8/Recycling | Spotter reported a threat 3663 | -8/Recycling | Spotter reported a threat 3689 | -8/Recycling | Spotter reported a threat 3691 | -8/Recycling | Spotter reported a threat 3710 | -8/Recycling | Spotter reported a threat 3746 | -8/Recycling | Spotter reported a threat 3765 | -8/Recycling | Spotter reported a threat 3775 | -8/Recycling | Spotter reported a threat 3799 | -8/Recycling | Spotter reported a threat 3817 | -8/Recycling | Discovered new exit (range 16) 3827 | -8/Recycling | Spotter reported a threat 3849 | -8/Recycling | Spotter reported a threat 3852 | -8/Recycling | Spotter reported a threat 3866 | -8/Recycling | Spotter reported a threat 3878 | -8/Recycling | Entered Factory 3878 | -6/Factory | Evolved 4 slots: Propulsion x2, Utility x2 3880 | -6/Factory | 1 allies followed out of Recycling 3988 | -6/Factory | Garrison activated, responded to threat 4047 | -6/Factory | Discovered new exit (range 4) 4141 | -6/Factory | Entered Lower Caves 4374 | -6/Lower Caves | Learned Factory security intel 4491 | -6/Lower Caves | Build established: Hauler-Tank 4513 | -6/Lower Caves | Learned 4 Factory zone layouts 4526 | -6/Lower Caves | Encountered a Warlord checkpoint 4825 | -6/Lower Caves | Discovered new exit (range 6) 4849 | -6/Lower Caves | Entered another Lower Caves area 4924 | -6/Lower Caves | Discovered new exit (range 10) 4937 | -6/Lower Caves | Entered Factory 4937 | -5/Factory | Evolved 2 slots: Power x1, Utility x1 4938 | -5/Factory | Identified exit to Factory 4981 | -5/Factory | Repaired Carbon-fiber Leg 5004 | -5/Factory | Repaired Lyr. Light Armor Plating 5267 | -5/Factory | Build established: Hauler-Skirmisher 5278 | -5/Factory | Identified exit to Extension 5347 | -5/Factory | Entered Extension 5409 | -5/Extension | Rescued a captive Derelict 5421 | -5/Extension | Rescued a captive Derelict 5422 | -5/Extension | Rescued a captive Derelict 6357 | -5/Extension | Spotted B-75 Beast 6366 | -5/Extension | Spotted B-75 Beast 6382 | -5/Extension | Allies destroyed B-75 Beast 6611 | -5/Extension | Destroyed B-75 Beast 6762 | -5/Extension | Rescued a captive Derelict 6762 | -5/Extension | Rescued a captive Derelict 6891 | -5/Extension | Build established: Derelict-Mutant 7009 | -5/Extension | Rescued a captive Derelict 7069 | -5/Extension | Discovered new exit (range 6) 7418 | -5/Extension | Entered Cetus 7418 | -5/Cetus | Accompanied by 1 ally 7442 | -5/Cetus | Spotted Cetus Guard 7442 | -5/Cetus | Spotted Cetus Guard 7452 | -5/Cetus | Spotted Cetus Guard 7453 | -5/Cetus | Spotted Cetus Guard 7471 | -5/Cetus | Destroyed Cetus Guard 7471 | -5/Cetus | Destroyed Cetus Guard 7473 | -5/Cetus | Destroyed Cetus Guard 7474 | -5/Cetus | Destroyed Cetus Guard 7490 | -5/Cetus | Build established: Hauler-Skirmisher 7499 | -5/Cetus | Lost 6 parts (1p3n2u) 7555 | -5/Cetus | Destroyed 7 combat bots 7802 | -5/Cetus | Build established: Scavenger-Tank 7892 | -5/Cetus | Identified exit to Archives 7958 | -5/Cetus | Entered Archives 8227 | -5/Archives | Unable to access archive contents 8245 | -5/Archives | Identified exit to Hub_04(d) 8256 | -5/Archives | Unable to access archive contents 8274 | -5/Archives | Unable to access archive contents 8355 | -5/Archives | Discovered exit to Factory (range 15) 8433 | -5/Archives | Entered Hub_04(d) 8583 | -5/Hub_04(d) | Lost 3 parts (1p2w) 8600 | -5/Hub_04(d) | System corruption reached 10% 8859 | -5/Hub_04(d) | Discovered exit to Factory (range 9) 8872 | -5/Hub_04(d) | Network Hub disabled 8872 | -5/Hub_04(d) | Network Hub disabled 8872 | -5/Hub_04(d) | Garrison activated, responded to threat 8899 | -5/Hub_04(d) | Entered Factory 8899 | -4/Factory | Evolved 2 slots: Utility x1, Weapon x1 9381 | -4/Factory | Repaired Centrium Heavy Treads 9491 | -4/Factory | Repaired Centrium Heavy Treads 9978 | -4/Factory | Discovered new exit (range 3) 9983 | -4/Factory | Entered Upper Caves 9985 | -4/Upper Caves | Attracted the attention of an 0b10 checkpoint 10053 | -4/Upper Caves | Lost 5 parts (2p1u2w) 10951 | -4/Upper Caves | Discovered new exit (range 3) 10993 | -4/Upper Caves | Entered another Upper Caves area 11003 | -4/Upper Caves | Attracted the attention of an 0b10 checkpoint 11262 | -4/Upper Caves | Learned Research machine intel 11561 | -4/Upper Caves | Discovered new exit (range 15) 11681 | -4/Upper Caves | Entered Warlord 11758 | -4/Warlord | System corruption cleaned by Quarantine Array 12303 | -4/Warlord | Visited the Vortex Lab 12314 | -4/Warlord | Warlord's base attacked by MAIN.C 12328 | -4/Warlord | Found Prototype Piercing Weapon 12331 | -4/Warlord | Found Prototype Piercing Weapon 12336 | -4/Warlord | Found Prototype Energy Gun 12339 | -4/Warlord | Found Prototype Energy Gun 12348 | -4/Warlord | Found Prototype Energy Gun 12351 | -4/Warlord | Found Prototype Energy Gun 12664 | -4/Warlord | Warlord forces counterattacked 12819 | -4/Warlord | Found Prototype Ballistic Cannon 12847 | -4/Warlord | Spotted Striker 12851 | -4/Warlord | Spotted Executioner 12894 | -4/Warlord | Destroyed Executioner 12899 | -4/Warlord | Discovered new exit (range 9) 12914 | -4/Warlord | Spotted Striker 12914 | -4/Warlord | Spotted Executioner 12920 | -4/Warlord | Entered Proximity Caves 12923 | -3/Proximity Caves | Identified Hvy. Autocannon 12948 | -3/Proximity Caves | Lost 3 parts (1u2w) 13209 | -3/Proximity Caves | Found Alien Artifact 13557 | -3/Proximity Caves | Discovered new exit (range 14) 13597 | -3/Proximity Caves | Entered Research 13597 | -3/Research | Evolved 2 slots: Utility x2 13597 | -3/Research | Identified Dimensional Node Initializer 13597 | -3/Research | Initialized slip node 13598 | -3/Research | Identified exit to Quarantine 13599 | -3/Research | Loaded intel: 118 machine locations 13647 | -3/Research | Central database locked down 13647 | -3/Research | Central database locked down 13665 | -3/Research | Found Antimissile System 14100 | -3/Research | Build established: Scavenger-Mutant 14176 | -3/Research | Identified Vortex Lance (x2) 14225 | -3/Research | Identified Vortex Shotgun (x4) 14266 | -3/Research | Destroyed 8 combat bots 14268 | -3/Research | Lost 4 parts (1p1n2w) 14307 | -3/Research | System corruption reached 10% 14337 | -3/Research | Lost 4 parts (2u2w) 14368 | -3/Research | Found Antimissile System 14705 | -3/Research | Build established: Scavenger-Tank 15337 | -3/Research | Build established: Scavenger-Mutant 15575 | -3/Research | Lost 4 parts (1n3w) 15815 | -3/Research | Build established: Hauler-Mutant 15881 | -3/Research | First assault squad dispatched 16097 | -3/Research | System corruption reached 30% 16127 | -3/Research | Lost 7 parts (1p3u3w) 16564 | -3/Research | Lost 5 parts (2u3w) 16964 | -3/Research | Lost 5 parts (2p1u2w) 17162 | -3/Research | Spotted B-86 Titan 17191 | -3/Research | Discovered new exit (range 7) 17193 | -3/Research | Entered another Research area 17193 | -2/Research | Evolved 2 slots: Propulsion x2 17214 | -2/Research | Lost 15 parts (1p2n10u2w) 17276 | -2/Research | Build established: Scavenger-Skirmisher 17373 | -2/Research | Lost 3 parts (1n1u1w) 17458 | -2/Research | Spotted B-90 Cyclops 17747 | -2/Research | Discovered new exit (range 15) 17752 | -2/Research | Entered Access 17752 | -1/Access | Evolved 2 slots: Propulsion x2 17782 | -1/Access | Lost 4 parts (1p2n1u) 17836 | -1/Access | Identified exit to Surface 17987 | -1/Access | Lost 3 parts (1p2n) 18008 | -1/Access | Spotted B-99 Colossus 18008 | -1/Access | Spotted B-99 Colossus 18017 | -1/Access | Core integrity fell below 50% 18030 | -1/Access | Core integrity fell below 20% 18035 | -1/Access | Destroyed by G-73 Enforcer with Heavy Laser Last Messages --------------- 18013_ Imp. Force Field destroyed. 18013_ Q-thruster destroyed. 18013_ Imp. System Shield destroyed. 18013_ Knocked back. 18013_ Penetrated by Slug. 18013_ Slug penetrates Wall. 18015_ Penetrated by Slug. 18015_ Slug penetrates Wall. 18016_ Penetrated by Slug. 18018_ B-99 Colossus activates siege mode. 18019_ Penetrated by Slug. 18020_ Slug penetrates Wall. 18020_ Penetrated by Slug. 18020_ Slug penetrates Wall. 18020_ Penetrated by Slug. 18029_ Slug penetrates Door. 18032_ Penetrated by Slug. 18034_ U-05 Engineer lays Concrete. [Achievement: 20k Club] [Achievement: This Is Interesting...] Map ----- +----------------------------------------------------+ | ?????????????????????????????????????????????????? | | ?????????????????????????????????????????????????? | | ???????????????????????????????????????????????### | | ?????????????????????????????????????????????### | | ?????????????????????????????????????????????? | | ???????????#######????????????????????????????? | | ???????????# #?????????????????????????????? ] | | ???????????# #??????????????????????????????# | | ???????????# #??????????????????????????????# | | ???????????# #??????????????????????????????# | | ???????????# #??????????????????????????????+ | | ???????????# #??????????????????????????????#* | | ???????????# #??????????????????????????????# | | ???????????# #??????????????????????????????# | | ???????????# #??????????????????????????????# | | ???????????# #??????????????????????????????# | | ???????????# #############??????????????????# | | ???????????? ?# #??????#######?????# | | ??#####+######;#### ! ######## ####### | | s # # * u # | | # " # | # | | ss """ # # | | #sg """ # | | ############### # " ] # | | ??# #???# # g g g Y / | | ??# #???# # @ # # | | ??# " #???# ########### # | | ??# """ #???# #?????????#### # ### # ##### | | ??# """ #???# #??????????# # ###???# | | ???? " #???# #???###################"####### | | ?????? #??## #?? "????????????" | | ???????? #??#" # # BB "????????????" | | ########+#####" """ BB "????????????" | | "????????????" | | "???????